Cogmind - Beta 13 @@@ ROGUE MODE // 2024.03.01 @ 00:14:09 Player: MAC-Bot 2145 Result: Destroyed by P-60 Hacker with Shock Rifle Performance ------------- Evolutions (4) 2000 Regions Visited (6) 1200 Robots Destroyed (43) 215 Value Destroyed (1012) 1012 Prototype IDs (3) 60 Alien Tech Used (0) 0 Bonus (16) 16 TOTAL SCORE: 4503 Bonus ------- High Alert Combat Kills 16 Cogmind --------- Core Integrity 0/850 Matter 477/550 Energy 99/100 System Corruption 6% Temperature Cool (0) Movement Core (200) Ox3 Location -6/Factory Parts ------- > --- POWER (2) -------- (None) > --- PROPULSION (4) --- (None) > --- UTILITY (7) ------ Small Storage Unit Matter Compressor Visual Processing Unit Improved Signal Interpreter Improved Targeting Computer Hacking Suite > --- WEAPON (2) ------- (None) > --- INVENTORY (8) ---- Wheel Salvage Targeting Computer Focal Shield Focal Shield Peak State ------------ > --- POWER ------------ Light Angular Momentum Engine Light Angular Momentum Engine > --- PROPULSION ------- Wheel Wheel > --- UTILITY ---------- Small Storage Unit Visual Processing Unit Improved Signal Interpreter Seismic Detector Improved Targeting Computer Improved Targeting Computer Hardlight Generator > --- WEAPON ----------- Improved Heavy Laser Improved Heavy Laser > --- INVENTORY -------- Light Nuclear Core Light Nuclear Core VSS Leg Matter Compressor Hacking Suite Shock Rifle Gauss Rifle Rocket Launcher [Rating: 40] Favorites ----------- Power Light Ion Engine Engine Light Ion Engine Power Core Light Nuclear Core Propulsion Wheel Treads Light Treads Leg Aluminum Leg Wheel Wheel Flight Unit Nuclear Pulse Thruster Utility Improved Targeting Computer Device Seismic Detector Storage Small Storage Unit Processor Improved Targeting Computer Hackware Hacking Suite Weapon Spread Laser Energy Gun Spread Laser Energy Cannon Advanced Beam Cannon Ballistic Gun High-powered Shotgun Launcher Rocket Launcher Build | -11 -10 -10 -9 -8 -7 -6 ------- Run | Yrd Mat Min Mat Mat Fac Fac Slots Evolved 8 | . . . 2 2 2 2 Power 1 | . . . 1 . . . Propulsion 2 | . . . . 2 . . Utility 5 | . . . 1 . 2 2 Weapon . | . . . . . . . Parts Attached 58 | 4 2 4 11 8 9 20 Power 11 | 1 . 1 3 1 . 5 Engine 8 | 1 . 1 3 1 . 2 Core 3 | . . . . . . 3 Reactor . | . . . . . . . Propulsion 18 | 2 . 2 4 3 4 3 Treads 2 | . . . 2 . . . Leg 9 | . . 2 2 3 . 2 Wheel 6 | 2 . . . . 4 . Hover . | . . . . . . . Flight 1 | . . . . . . 1 Utility 12 | 1 . 1 1 1 3 5 Device 4 | . . 1 . . . 3 Storage 3 | 1 . . . . 1 1 Processor 4 | . . . 1 1 2 . Hackware 1 | . . . . . . 1 Protection . | . . . . . . . Artifact . | . . . . . . . Weapon 17 | . 2 . 3 3 2 7 Energy Gun 8 | . 2 . 1 . 1 4 Energy Cannon 1 | . . . . 1 . . Ballistic Gun 6 | . . . 2 2 . 2 Ballistic Cannon . | . . . . . . . Launcher 2 | . . . . . 1 1 Special Weapon . | . . . . . . . Impact Weapon . | . . . . . . . Slashing Weapon . | . . . . . . . Piercing Weapon . | . . . . . . . Special Melee Weapon . | . . . . . . . Unidentified Prototypes 3 | . . . . 2 . 1 Parts Lost 28 | . . 1 4 . 2 21 Power 8 | . . . 3 . 2 3 Propulsion 8 | . . 1 . . . 7 Utility 4 | . . . . . . 4 Weapon 8 | . . . 1 . . 7 Highest Loss Streak 13 | . . 1 2 . 1 13 To Critical Strikes 1 | . . . . . . 1 Average Slot Usage (%) 86 | . 65 88 92 100 93 78 Engine 10 | . 14 14 20 18 9 1 Treads 1 | . . . 6 . . . Leg 10 | . . 1 15 36 20 1 Wheel 12 | . 28 25 . . 8 16 Device 6 | . . 4 11 1 . 10 Storage 9 | . 14 14 11 9 6 6 Processor 16 | . . . 5 16 30 24 Energy Gun 11 | . 8 28 11 9 6 6 Ballistic Gun 5 | . . . 10 9 7 3 Naked Turns . | . . . . . . . Heaviest Build 39 | 8 11 12 18 24 24 39 Greatest Support 42 | 26 26 26 40 42 42 40 Greatest Overweight (x) 5 | . . 1 . . 1 5 Average Overweight (x) . | . . . . . . . Largest Inventory Capacity 8 | 8 8 8 8 8 8 8 Average Capacity 7 | 7 8 8 8 8 7 8 Most Carried 8 | 8 8 8 8 8 8 8 Average Carried 6 | 4 7 7 5 6 7 5 Final Capacity 8 | 8 8 8 8 8 8 8 Final Carried 8 | 8 6 6 8 8 7 4 Class Distribution -------------------- 76% | Mutant 23% | Scavenger-Mutant Dominant Class ---------------- Mutant | -10/Materials Mutant | -10/Mines Mutant | -9/Materials Mutant | -8/Materials Scavenger-Mutant | -7/Factory Mutant | -6/Factory Resources | -11 -10 -10 -9 -8 -7 -6 ----------- Run | Yrd Mat Min Mat Mat Fac Fac Matter Collected 978 | 206 34 30 120 73 77 438 Remotely . | . . . . . . . Salvage Created 982 | . . 178 223 73 92 416 Parts 81 | . . 20 28 4 6 23 Haulers Intercepted . | . . . . . . . Recyclers Shooed 1 | . . . . . . 1 Parts Field Recycled . | . . . . . . . Retrieved Matter . | . . . . . . . Parts Self-Destructed . | . . . . . . . Prevented . | . . . . . . . Kills | -11 -10 -10 -9 -8 -7 -6 ------- Run | Yrd Mat Min Mat Mat Fac Fac Combat Hostiles Destroyed 39 | . . 12 14 1 2 10 Guns 37 | . . 12 14 1 . 10 AOE 2 | . . . . . 2 . Classes Destroyed 7 | . . 1 2 1 1 2 Builder 1 | . . . . . . 1 Watcher 3 | . . . 1 1 . 1 Swarmer 28 | . . 12 12 . . 4 Grunt 5 | . . . 2 . . 3 Duelist 1 | . . . . . . 1 Sentry 2 | . . . . 1 . 1 Hunter 3 | . . . . . 2 1 Best Kill Streak 5 | . . 3 5 1 2 4 Combat Bots Only 5 | . . 3 5 1 2 4 Max Kills in Single Turn 2 | . . 2 1 1 2 1 Gunslinging 1 | . . 1 . . . . Exploded 2 | . . . . . 2 . Melee . | . . . . . . . Uniques/NPCs Destroyed . | . . . . . . . Combat | -11 -10 -10 -9 -8 -7 -6 -------- Run | Yrd Mat Min Mat Mat Fac Fac Hostile Shots Fired 378 | . . 42 128 18 8 182 Missed 117 | . . 10 50 12 1 44 Damage Taken 3810 | . . 254 677 127 194 2558 Core 1154 | . . 73 127 48 52 854 Absorbed by Shields . | . . . . . . . Regen/Repaired (Parts) 81 | . . . . . 81 . Core Remaining (%) 84 | 100 . 70 68 91 92 . Volleys Fired 103 | . 1 19 38 5 1 39 Largest 2 | . 2 2 2 2 2 2 Hottest 130 | . 90 90 90 90 90 130 Shots Fired 193 | . 2 38 73 10 2 68 Gun 191 | . 2 38 73 10 2 66 Cannon . | . . . . . . . Launcher 2 | . . . . . . 2 Special . | . . . . . . . Kinetic 57 | . . . 32 5 1 19 Thermal 128 | . 2 38 41 5 1 41 Explosive 2 | . . . . . . 2 Electromagnetic 6 | . . . . . . 6 Robot Hit Streak 12 | . 1 5 10 5 2 12 Robot Miss Streak 8 | . 1 3 8 8 5 5 Penetration Max 1 | . . . . . . 1 Secondary Targets 8 | . . 1 5 . . 2 Max Gunslinging Chain 1 | . . 1 1 . . 1 Shots Hit Robots 125 | . 1 17 38 8 2 59 Core Hits 104 | . . 12 30 7 6 49 Critical Kills . | . . . . . . . Critical Parts Destroyed . | . . . . . . . Critical Strikes 1 | . . 1 . . . . Burn 1 | . . 1 . . . . Melee Attacks . | . . . . . . . Impact . | . . . . . . . Slashing . | . . . . . . . Piercing . | . . . . . . . Sneak Attacks . | . . . . . . . Combat Hostiles . | . . . . . . . Follow-up Attacks . | . . . . . . . Damage Inflicted 2286 | . 11 235 381 121 162 1376 Guns 1917 | . 11 235 381 121 15 1154 Cannons . | . . . . . . . Explosions 369 | . . . . . 147 222 Melee . | . . . . . . . Ramming . | . . . . . . . Kinetic 534 | . . . 101 80 11 342 Thermal 1307 | . 11 235 280 41 4 736 Explosive 222 | . . . . . . 222 Electromagnetic 223 | . . . . . 147 76 Impact . | . . . . . . . Slashing . | . . . . . . . Piercing . | . . . . . . . Highest Corruption 6 | . . . . . . 6 Average Corruption 4 | . . . . . . 4 Corruption Purged . | . . . . . . . Corruption Blocked . | . . . . . . . Effects 1 | . . . . . . 1 Heat Flow Errors 1 | . . . . . . 1 Overload Shots . | . . . . . . . Overflow Damage . | . . . . . . . Projectiles . | . . . . . . . Explosions . | . . . . . . . Melee . | . . . . . . . Knockbacks . | . . . . . . . Impact . | . . . . . . . Kinetic . | . . . . . . . Secondary . | . . . . . . . Self-Inflicted Damage 55 | . . . . . 52 3 Shots 3 | . . . . . 2 1 Rammed . | . . . . . . . Targets Rammed . | . . . . . . . Kicked . | . . . . . . . Crushed . | . . . . . . . Highest Temperature 426 | . 30 210 56 426 3 355 Average Temperature 74 | . 17 79 14 116 2 111 Received Heat Transfer 639 | . . . 57 45 . 537 Effects 1 | . . . . 1 . . Shutdowns 1 | . . . . 1 . . Siege Activations . | . . . . . . . Robots Corrupted . | . . . . . . . Combat Hostiles . | . . . . . . . Parts Fried 2 | . . . . . 2 . Impact Corruptions . | . . . . . . . Robots Melted . | . . . . . . . Combat Hostiles . | . . . . . . . Parts Melted 5 | . . 2 . . . 3 Heat Transferred 2377 | . 25 694 568 50 5 1035 Parts Sabotaged . | . . . . . . . Parts Stolen . | . . . . . . . Parts Stripped . | . . . . . . . Power Chain Reactions 1 | . . . . . 1 . Alert | -11 -10 -10 -9 -8 -7 -6 ------- Run | Yrd Mat Min Mat Mat Fac Fac Peak Influence 455 | . 30 241 455 244 243 191 Initial 137 | . . 11 31 137 110 114 Average 164 | . 18 171 282 199 179 101 Maximum Alert Level 2 | . . 1 2 1 1 . Low Security (%) 61 | 100 100 44 17 40 47 100 Level 1 34 | . . 55 59 59 52 . Level 2 4 | . . . 23 . . . Level 3 . | . . . . . . . Level 4 . | . . . . . . . Level 5 . | . . . . . . . High Security . | . . . . . . . Max Security . | . . . . . . . Squads Dispatched 6 | . 1 . 1 . 1 3 Investigation 1 | . . . . . 1 . Extermination 1 | . . . . . . 1 Reinforcement 4 | . 1 . 1 . . 2 Assault . | . . . . . . . Garrison . | . . . . . . . Intercept . | . . . . . . . Searches Triggered . | . . . . . . . Construction Impeded . | . . . . . . . Haulers Reinforced . | . . . . . . . Active Scanning Responses . | . . . . . . . Cargo Convoy Interrupts . | . . . . . . . Stealth | -11 -10 -10 -9 -8 -7 -6 --------- Run | Yrd Mat Min Mat Mat Fac Fac Distress Signals 3 | . . . 3 . . . Communications Jammed . | . . . . . . . Distress Signals . | . . . . . . . Times Spotted 68 | . 2 11 27 7 2 19 Peak Tracking Total 7 | . 2 3 7 3 2 5 Tactical Retreats 4 | . . . 3 . . 1 Traps | -11 -10 -10 -9 -8 -7 -6 ------- Run | Yrd Mat Min Mat Mat Fac Fac Traps Triggered 2 | . . . . . 2 . Indirectly . | . . . . . . . Trap Hack Attempts . | . . . . . . . Triggered . | . . . . . . . Disarmed . | . . . . . . . Reprogrammed . | . . . . . . . Reused 1 | . . . . 1 . . Traps Extracted . | . . . . . . . Installed 1 | . . . . 1 . . Triggered 1 | . . . . 1 . . Most Traps Carried 1 | . . 1 1 1 . . Machines | -11 -10 -10 -9 -8 -7 -6 ---------- Run | Yrd Mat Min Mat Mat Fac Fac Machines Disabled 5 | . . . . . 5 . Max in Single Turn 3 | . . . . . 3 . Machines Repaired . | . . . . . . . Machines Dismantled . | . . . . . . . Machines Sabotaged . | . . . . . . . Overloaded Fab Kills . | . . . . . . . Hacking | -11 -10 -10 -9 -8 -7 -6 --------- Run | Yrd Mat Min Mat Mat Fac Fac Machines Accessed 5 | . . . 1 1 3 . Terminals 2 | . . . . 1 1 . Fabricators 1 | . . . . . 1 . Repair Stations 1 | . . . . . 1 . Recycling Units . | . . . . . . . Scanalyzers 1 | . . . 1 . . . Garrison Access . | . . . . . . . Total Hacks 17 | . . . 6 3 8 . Successful 12 | . . . 6 3 3 . Failed 5 | . . . . . 5 . Catastrophic . | . . . . . . . Database Lockouts . | . . . . . . . Manual . | . . . . . . . Terminals 4 | . . . . 3 1 . Fabricators 2 | . . . . . 2 . Repair Stations 5 | . . . . . 5 . Recycling Units . | . . . . . . . Scanalyzers 6 | . . . 6 . . . Garrison Access . | . . . . . . . Terminal Hacks 4 | . . . . 3 1 . Record 3 | . . . . 3 . . Open DSF 1 | . . . . . 1 . Fabricator Hacks . | . . . . . . . Repair Station Hacks 2 | . . . . . 2 . Scan Component 1 | . . . . . 1 . Repair 1 | . . . . . 1 . Recycling Unit Hacks . | . . . . . . . Scanalyzer 6 | . . . 6 . . . Insert Component 3 | . . . 3 . . . Analyze 3 | . . . 3 . . . Garrison Access Hacks . | . . . . . . . Unauthorized Hacks . | . . . . . . . Terminals . | . . . . . . . Fabricators . | . . . . . . . Repair Stations . | . . . . . . . Recycling Units . | . . . . . . . Scanalyzers . | . . . . . . . Garrison Access . | . . . . . . . Data Cores Recovered . | . . . . . . . Used . | . . . . . . . Hacking Detections 3 | . . . 1 . 2 . Full Trace Events . | . . . . . . . Feedback Events . | . . . . . . . Feedback Blocked . | . . . . . . . Robot Schematics Acquired . | . . . . . . . Robots Built . | . . . . . . . Authchips . | . . . . . . . Time . | . . . . . . . Total Robot Build Rating . | . . . . . . . Part Schematics Acquired 3 | . . . 3 . . . Parts Built . | . . . . . . . Authchips . | . . . . . . . Time . | . . . . . . . Total Part Build Rating . | . . . . . . . Parts Repaired 1 | . . . . . 1 . Time 26 | . . . . . 26 . Parts Recycled . | . . . . . . . Recycled Matter . | . . . . . . . Retrieved Matter . | . . . . . . . Retrieved Components . | . . . . . . . Parts Scanalyzed 3 | . . . 3 . . . Part Schematics Acquired 3 | . . . 3 . . . Parts Damaged . | . . . . . . . Bothacking | -11 -10 -10 -9 -8 -7 -6 ------------ Run | Yrd Mat Min Mat Mat Fac Fac Used RIF Installer . | . . . . . . . Robots Hacked . | . . . . . . . Non-combat . | . . . . . . . Combat . | . . . . . . . Robot Hacks Applied . | . . . . . . . Relay Couplers Released . | . . . . . . . Fabnet Peak Effective % . | . . . . . . . Robots Rewired . | . . . . . . . Allies Hacked . | . . . . . . . Hacks Repelled . | . . . . . . . Allies | -11 -10 -10 -9 -8 -7 -6 -------- Run | Yrd Mat Min Mat Mat Fac Fac Total Allies . | . . . . . . . Largest Group . | . . . . . . . Highest-Rated Group . | . . . . . . . Highest-Rated Ally . | . . . . . . . Total Orders . | . . . . . . . Ally Attacks . | . . . . . . . Total Damage . | . . . . . . . Kills . | . . . . . . . Allies Corrupted . | . . . . . . . Allies Melted . | . . . . . . . Intel | -11 -10 -10 -9 -8 -7 -6 ------- Run | Yrd Mat Min Mat Mat Fac Fac Robot Analysis Total . | . . . . . . . Derelict Logs Recovered 1 | . . 1 . . . . Drone Launches . | . . . . . . . Drone Recoveries . | . . . . . . . Exploration | -11 -10 -10 -9 -8 -7 -6 ------------- Run | Yrd Mat Min Mat Mat Fac Fac Turns Passed 2691 | 48 61 451 485 304 385 957 Spaces Moved 1956 | 41 60 420 270 233 320 612 Core 28 | 10 . . . . . 18 Treads 63 | . . . 63 . . . Legs 771 | . . 22 207 233 231 78 Wheels 1094 | 31 60 398 . . 89 516 Hover . | . . . . . . . Flight . | . . . . . . . Fastest Speed 50 | 50 90 90 120 112 80 80 Average Speed 103 | 80 90 91 129 114 104 97 Slowest Speed 300 | 90 90 120 160 120 180 300 Overloaded Moves . | . . . . . . . Propulsion Burnouts . | . . . . . . . Robots Hopped . | . . . . . . . Cave-ins Triggered . | . . . . . . . Exploration Rate (%) 22 | 3 15 79 22 17 8 13 Regions Visited 6 Branch Regions 1 Pre-discovered Areas 1 | . . 1 . . . . Known Exits Taken 1 | . . . . . 1 . Unknown Exits Taken 5 | 1 1 1 1 1 . . Scrap Searched 1 | . . 1 . . . . Spaces Dug . | . . . . . . . Terrain Destroyed 22 | . . . . . 5 17 Melee . | . . . . . . . Projectile 1 | . . . . . . 1 AOE 21 | . . . . . 5 16 Terrain Rammed . | . . . . . . . Walls Destroyed . | . . . . . . . Machines Disabled . | . . . . . . . Actions | -11 -10 -10 -9 -8 -7 -6 --------- Run | Yrd Mat Min Mat Mat Fac Fac Total 2442 | 56 64 448 341 261 368 904 Wait 247 | . 2 2 . . 27 216 Move 1950 | 40 59 419 269 232 319 612 Hop . | . . . . . . . Pick Up 58 | 12 . 2 14 9 6 15 Fast Attach 5 | . . 1 . . 4 . Attach 40 | 4 2 2 7 5 3 17 Detach 2 | . . . 2 . . . Swap 13 | . . 1 4 3 2 3 Drop 23 | . . 2 7 6 6 2 Fire 103 | . 1 19 38 5 1 39 Melee . | . . . . . . . Ram . | . . . . . . . Kick . | . . . . . . . Crush . | . . . . . . . Escape Stasis . | . . . . . . . Rewire . | . . . . . . . Trap 1 | . . . . 1 . . Miscellaneous . | . . . . . . . Route ------- -11/Scrapyard -10/Materials -10/Mines -9/Materials -8/Materials -7/Factory -6/Factory History --------- Turn | Location | Event 10 | -11/Scrapyard | Discovered new exit (range 15) 49 | -11/Scrapyard | Entered Materials 79 | -10/Materials | Discovered new exit (range 6) 110 | -10/Materials | Entered Mines 207 | -10/Mines | Learned location of Zion (-6) 307 | -10/Mines | Build established: Mutant 384 | -10/Mines | Found a hidden stash of uninstalled traps 501 | -10/Mines | Discovered new exit (range 11) 561 | -10/Mines | Entered Materials 561 | -9/Materials | Evolved 2 slots: Power x1, Utility x1 1018 | -9/Materials | Discovered new exit (range 15) 1046 | -9/Materials | Entered another Materials area 1046 | -8/Materials | Evolved 2 slots: Propulsion x2 1348 | -8/Materials | Discovered new exit (range 3) 1350 | -8/Materials | Entered Factory 1350 | -7/Factory | Evolved 2 slots: Utility x2 1592 | -7/Factory | Discovered new exit (range 8) 1600 | -7/Factory | Identified exit to Factory 1701 | -7/Factory | Repaired Sml. Storage Unit 1735 | -7/Factory | Entered another Factory area 1735 | -6/Factory | Evolved 2 slots: Utility x2 2299 | -6/Factory | Lost 3 parts (2n1w) 2497 | -6/Factory | Core integrity fell below 50% 2546 | -6/Factory | Lost 13 parts (3p3n3u4w) 2656 | -6/Factory | Core integrity fell below 20% 2692 | -6/Factory | Destroyed by P-60 Hacker with Shock Rifle Last Messages --------------- U-05 Engineer lays Concrete. K-01 Serf collects debris. U-05 Engineer lays Concrete. K-01 Serf collects debris. U-05 Engineer builds a Wall. U-05 Engineer lays Concrete. P-60 Hacker resets R-10 Processor, system corruption cleaned. U-05 Engineer lays Concrete. K-01 Serf collects debris. U-05 Engineer lays Concrete. K-01 Serf collects debris. Imp. Heavy Laser destroyed. U-05 Engineer lays Concrete. K-01 Serf collects debris. U-05 Engineer lays Concrete. K-01 Serf collects debris. U-05 Engineer lays Concrete. K-01 Serf collects debris. U-05 Engineer lays Concrete. Map ----- +----------------------------------------------------+ | ?????????????????????????????????????????????????? | | ?????????????????????????????????????????????????? | | ?????????????????????????????????????????????????? | | ?????????????????????????????????????????????????? | | ?????????????????????????????????????????????????? | | ?????????????????????????????????????????????????? | | ?????????????????????????????????????????????????? | | ?????????????????????????????????????????????????? | | ?????????????????????????????????????????????????? | | ?????????????????????????????????????????????????? | | ?????????????????????????????????????????????????? | | ?????????????????????????????????????????????????? | | ######???????????????????????????????????????????? | | #???????????????????????????????????????????? | | [ #???????????????????????????????????????????? | | #???????????????????????????????????????????? | | """ #?????????????????????????? #???????????????? | | """ #?????????????????????????? #???????????????? | | " #?????????????????????????? #????? #????????? | | "F" #?????????????????????????? #??? #????????? | | """ #????????????????????????? #?? #????????? | | # #??????????????????????? #?? #????????? | | #+#####???????????????????????? #? #????????? | | ###?????##################A### #????????? | | ######### R R #????????? | | @ pR k #????????? | | ######### !! #????????? | | ###?????# !! % #????????? | | #+#####??????# !! #????????? | | ! #?????# k u ########????????? | | #?????# u #???????????????? | | #?????# kk #???????????????? | | #?????+ #???????????????? | | #?????# #???????????????? | | ? #?????# #####???????????? | | ? !#?????# k u +????? | | ? #?????# ^^^k####;; ##/#;;####### #????? | | ? #?????# R #??# ; ]??????????????? | | ?#######?????# #??### #???????????? | | ?????????????# #????# " " " " " #???????????? | | ?????????????# ????+ " " " " " #???????????? | | ????????????? #????# " " " " " #???????????? | | ????????????? #????# " " " " " #???????????? | | ?????????????###+#+#????# " " " " " #???????????? | | ?????????????????? ?????# " ? " " " #???????????? | | ????????????????????????# " ? " "?" ?????????????? | | ??????????????????????????" ? "??????????????????? | | ??????????????????????????" ? "??????????????????? | | ?????????????????????????? ? ??????????????????? | | ??????????????????????????#???#??????????????????? | +----------------------------------------------------+ Best States ------------- Heat Dissipation 41 Energy Generation 31 Energy Capacity 275 Matter Stores 477 Matter Capacity 550 Sight Range 18 Terrain Scan Density 10 Evasion (%) 55 Targeting Accuracy 12 Recoil Reduction 2 Offensive Hacking 10 Item Schematics ----------------- Aluminum Leg | -9/Materials | Scanalyzed Lgt. Ion Engine | -9/Materials | Scanalyzed Com. Wheel | -9/Materials | Scanalyzed Robot Schematics ------------------ None Fabricated ------------ Nothing Alien Tech Used ----------------- None Achievements -------------- None Challenges ------------ None Game ------ Seed SpacefoldChainCleaver Manual? 0 Play Time 00:44:13 Cumulative 55.2 hours Start 2024.02.29 @ 23:25:28 End 2024.03.01 @ 00:14:09 Sessions 1 Manual Loads 0 Difficulty Rogue Special Mode None Game No. 44 Rogue 44 Adventurer 0 Explorer 0 Win Type - Total 0 Types 0/0/0/0/0/0/0/0/0 Lore% 19 Gallery% 20 Achievement% 19 Wizard Run 0 Options --------- Layout 1 ASCII 0 Keyboard 0 Movement Numpad Keybinds 0 Fullscreen 1 Font 24/Smallcaps Map View 50x35 Zoom Use 0% Tactical HUD 0 Map Filters NONE Filters NONE Steam 1 RUN: 8b145a98-47c7-4b5f-b73e-e3e2d793f32e